[Event "ONJK-B 2019"]
[Site "Borne"]
[Date "2019.08.10"]
[Round "9.10"]
[White "Heskes, Johan"]
[Black "Warnaar, Mark"]
[Result "1-0"]
[ECO "D06"]
[WhiteElo "1535"]
[BlackElo "1175"]
[Annotator "NA"]
[PlyCount "43"]
[EventDate "2019.08.05"]
[EventType "swiss"]
[EventCountry "NED"]
[SourceTitle "playchess.com"]
[Source "ChessBase"]
[SourceQuality "1"]
[TimeControl "5400+30"]

1. d4 {[%emt 0:00:00]} d5 {[%emt 0:27:43]} 2. c4 {[%emt 0:00:00]} Nf6 {[%emt 0:00:28]} 3. cxd5 {[%emt 0:00:12]} Nxd5 {[%emt 0:00:12]} 4. e4 {[%emt 0:00:07]} Nf6 {[%emt 0:01:31]} 5. Nc3 {[%emt 0:00:14]} e6 {[%emt 0:00:32]} 6. Nf3 {[%emt 0:01:25]} Bb4 {[%emt 0:00:11]} 7. e5 {[%emt 0:00:15]} Nd5 {[%emt 0:00:09]} 8. Bd2 {[%emt 0:00:08]} Nc6 {[%emt 0:00:12]} 9. Bb5 {[%emt 0:01:19]} Bd7 {[%emt 0:00:28]} 10. O-O {[%emt 0:00:44]} a6 {[%emt 0:00:16]} 11. Bxc6 {[%emt 0:00:46]} Bxc6 {[%emt 0:02:06]} 12. Nxd5 {[%emt 0:00:16]} Bxd2 {[%emt 0:00:09]} 13. Nxc7+ {[%emt 0:00:15]} Qxc7 {[%emt 0:00:09]} 14. Nxd2 {[%emt 0:00:43]} Bd5 {[%emt 0:00:40]} 15. Qa4+ {[%emt 0:02:13]} b5 {[%emt 0:00:22]} 16. Qb4 {[%emt 0:00:22]} Qb7 {[%emt 0:00:58]} 17. f3 {[%emt 0:01:11]} Rc8 {[%emt 0:02:26]} 18. Rfc1 {[%emt 0:02:19]} Kd7 {[%emt 0:01:55]} 19. Qd6+ {[%emt 0:03:02]} Ke8 {[%emt 0:00:15]} 20. Rc5 {[%emt 0:05:15]} Rc6 {[%emt 0:01:20]} 21. Rxc6 {[%emt 0:00:09]} Bxc6 {[%emt 0:00:07]} 22. Rc1 {[%emt 0:00:06]} 1-0

[Event "ONJK-B 2019"]
[Site "Borne"]
[Date "2019.08.10"]
[Round "9.11"]
[White "Lauwers, Timo"]
[Black "Schoonhoven, Mark"]
[Result "1-0"]
[ECO "A48"]
[WhiteElo "1364"]
[BlackElo "1275"]
[Annotator "NA"]
[PlyCount "73"]
[EventDate "2019.08.05"]
[EventType "swiss"]
[EventCountry "NED"]
[SourceTitle "playchess.com"]
[Source "ChessBase"]
[SourceQuality "1"]
[TimeControl "5400+30"]

1. d4 {[%emt 0:00:00]} Nf6 {[%emt 0:00:00]} 2. Bf4 {[%emt 0:00:00]} g6 {[%emt 0:00:56]} 3. Nf3 {[%emt 0:00:15]} d6 {[%emt 0:04:00]} 4. e3 {[%emt 0:01:09]} Bg7 {[%emt 0:00:37]} 5. Nbd2 {[%emt 0:00:42]} O-O {[%emt 0:02:06]} 6. Be2 {[%emt 0:02:00]} c5 {[%emt 0:05:02]} 7. c3 {[%emt 0:00:12]} Nc6 {[%emt 0:03:51]} 8. Nb3 {[%emt 0:04:11]} b6 {[%emt 0:01:51]} 9. Nfd2 {[%emt 0:01:15]} a5 {[%emt 0:07:06]} 10. a4 {[%emt 0:00:58]} Ba6 {[%emt 0:05:10]} 11. Bxa6 {[%emt 0:00:54]} Rxa6 {[%emt 0:00:07]} 12. Qe2 {[%emt 0:00:19]} Ra7 {[%emt 0:05:06]} 13. g4 {[%emt 0:04:06]} e5 {[%emt 0:05:32]} 14. dxe5 {[%emt 0:07:27]} Nxe5 {[%emt 0:00:31]} 15. Bxe5 {[%emt 0:00:24]} dxe5 {[%emt 0:00:04]} 16. Rd1 {[%emt 0:00:55]} Qd7 {[%emt 0:00:26]} 17. g5 {[%emt 0:14:08]} Nh5 {[%emt 0:01:09]} 18. Qc4 {[%emt 0:02:22]} Kh8 {[%emt 0:05:08]} 19. Rg1 {[%emt 0:08:05]} Rd8 {[%emt 0:01:42]} 20. Qg4 {[%emt 0:04:35]} Qc6 {[%emt 0:02:02]} 21. Qe4 {[%emt 0:04:34]} Qd6 {[%emt 0:03:57]} 22. Ke2 {[%emt 0:02:16]} f5 {[%emt 0:14:42]} 23. gxf6 {[%emt 0:04:31]} Nxf6 {[%emt 0:01:44]} 24. Qc4 {[%emt 0:03:17]} Rad7 {[%emt 0:06:05]} 25. Ne4 {[%emt 0:04:41]} Qc6 {[%emt 0:09:28]} 26. Nxf6 {[%emt 0:04:38]} Bxf6 {[%emt 0:01:28]} 27. Rxd7 {[%emt 0:04:13]} Qxd7 {[%emt 0:01:10]} 28. Qa6 {[%emt 0:04:57]} e4 {[%emt 0:07:54]} 29. Qc4 {[%emt 0:02:31]} Qd3+ {[%emt 0:02:43]} 30. Qxd3 {[%emt 0:00:18]} exd3+ {[%emt 0:01:32]} 31. Kd2 {[%emt 0:00:09]} h5 {[%emt 0:00:50]} 32. Rxg6 {[%emt 0:00:39]} Bh4 {[%emt 0:01:24]} 33. Rxb6 {[%emt 0:02:32]} Bxf2 {[%emt 0:00:27]} 34. Rh6+ {[%emt 0:00:50]} Kg7 {[%emt 0:00:04]} 35. Rxh5 {[%emt 0:00:46]} Re8 {[%emt 0:00:57]} 36. Rh3 {[%emt 0:01:44]} Kg6 {[%emt 0:00:38]} 37. Nxc5 {[%emt 0:00:55]} 1-0

[Event "ONJK-B 2019"]
[Site "Borne"]
[Date "2019.08.10"]
[Round "9.12"]
[White "Visser, Barto"]
[Black "Klein, Lucas"]
[Result "0-1"]
[ECO "B23"]
[WhiteElo "1389"]
[BlackElo "1481"]
[Annotator "NA"]
[PlyCount "36"]
[EventDate "2019.08.05"]
[EventType "swiss"]
[EventCountry "NED"]
[SourceTitle "playchess.com"]
[Source "ChessBase"]
[SourceQuality "1"]
[TimeControl "5400+30"]

1. e4 {[%emt 0:00:19]} c5 {[%emt 0:00:00]} 2. Nc3 {[%emt 0:00:03]} Nc6 {[%emt 0:00:00]} 3. f4 {[%emt 0:00:14]} e6 {[%emt 0:00:21]} 4. Bc4 {[%emt 0:00:36]} a6 {[%emt 0:03:55]} 5. a4 {[%emt 0:00:37]} Nge7 {[%emt 0:00:52]} 6. f5 {[%emt 0:02:59]} d5 {[%emt 0:06:48]} 7. Ba2 {[%emt 0:02:05]} d4 {[%emt 0:04:59]} 8. fxe6 {[%emt 0:05:55]} Bxe6 {[%emt 0:00:56]} 9. Nce2 {[%emt 0:04:33]} Bxa2 {[%emt 0:00:59]} 10. Rxa2 {[%emt 0:00:08]} d3 {[%emt 0:00:44]} 11. Ng3 {[%emt 0:07:04]} Nb4 {[%emt 0:02:47]} 12. b3 {[%emt 0:03:04]} Nxa2 {[%emt 0:01:25]} 13. Bb2 {[%emt 0:00:11]} dxc2 {[%emt 0:01:06]} 14. Qxc2 {[%emt 0:00:09]} Nb4 {[%emt 0:00:45]} 15. Qc3 {[%emt 0:01:09]} Nd3+ {[%emt 0:01:12]} 16. Kd1 {[%emt 0:00:14]} Nf2+ {[%emt 0:01:29]} 17. Kc1 {[%emt 0:00:16]} Qd3 {[%emt 0:04:30]} 18. Qxc5 {[%emt 0:00:48]} Rc8 {[%emt 0:00:48]} 0-1

[Event "ONJK-B 2019"]
[Site "Borne"]
[Date "2019.08.10"]
[Round "9.13"]
[White "Mainka, Irmin"]
[Black "Van Borren, Matthijs"]
[Result "1-0"]
[ECO "B29"]
[WhiteElo "1611"]
[BlackElo "1339"]
[Annotator "NA"]
[PlyCount "47"]
[EventDate "2019.08.05"]
[EventType "swiss"]
[EventCountry "NED"]
[SourceTitle "playchess.com"]
[Source "ChessBase"]
[SourceQuality "1"]
[TimeControl "5400+30"]

1. e4 {[%emt 0:00:00]} c5 {[%emt 0:00:00]} 2. Nf3 {[%emt 0:00:00]} Nf6 {[%emt 0:00:00]} 3. e5 {[%emt 0:00:58]} Ng8 {[%emt 0:00:43]} 4. d4 {[%emt 0:00:32]} cxd4 {[%emt 0:00:26]} 5. Qxd4 {[%emt 0:00:18]} Nc6 {[%emt 0:00:15]} 6. Qd1 {[%emt 0:00:07]} g6 {[%emt 0:03:34]} 7. Bc4 {[%emt 0:01:35]} Bg7 {[%emt 0:01:29]} 8. Qd5 {[%emt 0:00:05]} e6 {[%emt 0:01:32]} 9. Qd6 {[%emt 0:00:56]} Qe7 {[%emt 0:01:45]} 10. Qxe7+ {[%emt 0:00:31]} Ngxe7 {[%emt 0:00:25]} 11. Bf4 {[%emt 0:00:58]} a6 {[%emt 0:00:45]} 12. Nc3 {[%emt 0:00:56]} b5 {[%emt 0:00:27]} 13. Bb3 {[%emt 0:00:27]} Bb7 {[%emt 0:01:46]} 14. Ne4 {[%emt 0:00:57]} O-O {[%emt 0:01:17]} 15. O-O-O {[%emt 0:01:19]} Rfd8 {[%emt 0:01:19]} 16. Nf6+ {[%emt 0:00:19]} Bxf6 {[%emt 0:02:20]} 17. exf6 {[%emt 0:00:08]} Nc8 {[%emt 0:01:28]} 18. Bc7 {[%emt 0:00:29]} Re8 {[%emt 0:00:38]} 19. Rxd7 {[%emt 0:00:48]} a5 {[%emt 0:00:57]} 20. a3 {[%emt 0:02:03]} h6 {[%emt 0:01:13]} 21. h4 {[%emt 0:01:24]} h5 {[%emt 0:00:43]} 22. Ng5 {[%emt 0:00:25]} Rf8 {[%emt 0:00:32]} 23. Re1 {[%emt 0:02:53]} Ra6 {[%emt 0:03:27]} 24. Nxf7 {[%emt 0:02:48]} 1-0

[Event "ONJK-B 2019"]
[Site "Borne"]
[Date "2019.08.10"]
[Round "9.14"]
[White "Winter, Ynse"]
[Black "Van Dam, Kars"]
[Result "1/2-1/2"]
[ECO "D11"]
[WhiteElo "1021"]
[BlackElo "1024"]
[Annotator "NA"]
[PlyCount "97"]
[EventDate "2019.08.05"]
[EventType "swiss"]
[EventCountry "NED"]
[SourceTitle "playchess.com"]
[Source "ChessBase"]
[SourceQuality "1"]
[TimeControl "5400+30"]

1. d4 {[%emt 0:00:00]} d5 {[%emt 0:00:00]} 2. c4 {[%emt 0:00:00]} c6 {[%emt 0:00:00]} 3. cxd5 {[%emt 0:00:00]} cxd5 {[%emt 0:00:00]} 4. Nf3 {[%emt 0:00:00]} Bf5 {[%emt 0:00:18]} 5. Qb3 {[%emt 0:00:12]} Qc8 {[%emt 0:02:04]} 6. Nc3 {[%emt 0:01:05]} e6 {[%emt 0:00:03]} 7. Bf4 {[%emt 0:00:51]} Nf6 {[%emt 0:03:18]} 8. e3 {[%emt 0:00:41]} a6 {[%emt 0:00:04]} 9. Qa4+ {[%emt 0:02:38]} Nc6 {[%emt 0:01:00]} 10. Ne5 {[%emt 0:05:35]} Be7 {[%emt 0:01:05]} 11. Be2 {[%emt 0:06:33]} O-O {[%emt 0:00:06]} 12. Nxc6 {[%emt 0:00:27]} Qxc6 {[%emt 0:00:15]} 13. Qxc6 {[%emt 0:00:05]} bxc6 {[%emt 0:00:01]} 14. a3 {[%emt 0:00:16]} a5 {[%emt 0:00:32]} 15. Rc1 {[%emt 0:01:22]} Rfc8 {[%emt 0:01:00]} 16. Na4 {[%emt 0:01:01]} Nd7 {[%emt 0:01:57]} 17. O-O {[%emt 0:01:28]} Ra7 {[%emt 0:04:08]} 18. Bb5 {[%emt 0:04:52]} Nb8 {[%emt 0:03:56]} 19. Bxb8 {[%emt 0:00:53]} Rxb8 {[%emt 0:00:01]} 20. Bxc6 {[%emt 0:00:43]} Bd3 {[%emt 0:00:54]} 21. Rfd1 {[%emt 0:00:37]} Bc4 {[%emt 0:00:18]} 22. e4 {[%emt 0:06:09]} Ra6 {[%emt 0:02:02]} 23. exd5 exd5 {[%emt 0:00:20]} 24. Bd7 {[%emt 0:03:10]} Rd6 {[%emt 0:03:38]} 25. Bf5 {[%emt 0:04:46]} g6 {[%emt 0:01:12]} 26. Bd3 {[%emt 0:00:44]} Bb3 {[%emt 0:00:14]} 27. Bc2 {[%emt 0:00:09]} Bxa4 {[%emt 0:00:07]} 28. Bxa4 {[%emt 0:00:20]} Rxb2 {[%emt 0:00:11]} 29. Rc2 {[%emt 0:15:11]} Rdb6 {[%emt 0:03:38]} 30. Rxb2 {[%emt 0:01:36]} Rxb2 {[%emt 0:00:05]} 31. Rd3 {[%emt 0:00:12]} Rb1+ {[%emt 0:00:10]} 32. Rd1 {[%emt 0:00:00]} Rxd1+ {[%emt 0:00:02]} 33. Bxd1 {[%emt 0:00:01]} Bxa3 {[%emt 0:00:02]} 34. Bb3 {[%emt 0:00:44]} Bb2 {[%emt 0:00:05]} 35. Bxd5 {[%emt 0:00:06]} Bxd4 {[%emt 0:00:01]} 36. Kf1 {[%emt 0:00:31]} Kf8 {[%emt 0:00:03]} 37. Ke2 {[%emt 0:00:14]} Ke7 {[%emt 0:00:10]} 38. f3 {[%emt 0:00:40]} Bg1 {[%emt 0:06:34]} 39. h3 {[%emt 0:00:25]} h6 {[%emt 0:00:58]} 40. Kd3 {[%emt 0:00:09]} f6 {[%emt 0:00:26]} 41. Ke4 {[%emt 0:03:37]} Kd6 {[%emt 0:00:51]} 42. Bf7 {[%emt 0:00:44]} f5+ {[%emt 0:01:08]} 43. Kf4 {[%emt 0:02:16]} Bh2+ {[%emt 0:00:02]} 44. g3 {[%emt 0:00:18]} a4 {[%emt 0:01:02]} 45. Bxg6 {[%emt 0:00:02]} Ke7 {[%emt 0:00:02]} 46. Bf7 {[%emt 0:00:03]} Kd6 {[%emt 0:00:08]} 47. Bg6 a3 {[%emt 0:00:02]} 48. Bf7 {[%emt 0:00:02]} Ke7 49. Bg6 1/2-1/2

[Event "ONJK-B 2019"]
[Site "Borne"]
[Date "2019.08.10"]
[Round "9.16"]
[White "Wiggers, Yannick"]
[Black "Hooijmans, Max"]
[Result "1/2-1/2"]
[ECO "C45"]
[WhiteElo "1331"]
[BlackElo "1559"]
[Annotator "NA"]
[PlyCount "98"]
[EventDate "2019.08.05"]
[EventType "swiss"]
[EventCountry "NED"]
[SourceTitle "playchess.com"]
[Source "ChessBase"]
[SourceQuality "1"]
[TimeControl "5400+30"]

1. e4 {[%emt 0:00:00]} e5 {[%emt 0:00:00]} 2. Nf3 {[%emt 0:00:00]} Nc6 {[%emt 0:00:00]} 3. d4 {[%emt 0:00:00]} exd4 {[%emt 0:00:00]} 4. Nxd4 {[%emt 0:00:00]} Bc5 {[%emt 0:00:00]} 5. Be3 {[%emt 0:00:00]} Bb6 {[%emt 0:02:04]} 6. Bc4 {[%emt 0:01:48]} Nge7 {[%emt 0:00:39]} 7. Nc3 {[%emt 0:01:36]} O-O {[%emt 0:00:31]} 8. Qd2 {[%emt 0:00:27]} d6 {[%emt 0:05:57]} 9. O-O-O {[%emt 0:01:12]} Nxd4 {[%emt 0:07:34]} 10. Bxd4 {[%emt 0:00:18]} Be6 {[%emt 0:00:10]} 11. Bb3 {[%emt 0:01:48]} Nc6 {[%emt 0:06:36]} 12. Bxb6 {[%emt 0:04:18]} axb6 {[%emt 0:00:20]} 13. f4 {[%emt 0:00:13]} Nb4 {[%emt 0:02:25]} 14. Kb1 {[%emt 0:01:10]} Bxb3 {[%emt 0:01:26]} 15. cxb3 {[%emt 0:00:26]} Nc6 {[%emt 0:07:42]} 16. h4 {[%emt 0:01:48]} Ra5 {[%emt 0:00:39]} 17. g4 {[%emt 0:00:26]} Qe7 {[%emt 0:01:18]} 18. h5 {[%emt 0:04:55]} Qd7 {[%emt 0:01:09]} 19. Rdg1 {[%emt 0:02:15]} b5 {[%emt 0:01:25]} 20. Nd5 {[%emt 0:02:53]} b4 {[%emt 0:02:05]} 21. Nxb4 {[%emt 0:01:01]} Nxb4 {[%emt 0:00:08]} 22. Qxb4 {[%emt 0:00:06]} Rb5 {[%emt 0:00:34]} 23. Qd4 {[%emt 0:00:55]} c5 {[%emt 0:01:14]} 24. Qc3 {[%emt 0:02:32]} Qe6 {[%emt 0:02:26]} 25. Qd3 {[%emt 0:01:37]} Ra5 {[%emt 0:01:35]} 26. Rg3 {[%emt 0:01:27]} Rfa8 {[%emt 0:00:31]} 27. a3 {[%emt 0:00:05]} b5 {[%emt 0:01:46]} 28. Rd1 {[%emt 0:04:24]} b4 {[%emt 0:02:30]} 29. a4 {[%emt 0:06:40]} c4 {[%emt 0:01:16]} 30. Qxc4 {[%emt 0:03:25]} Rxa4 {[%emt 0:01:53]} 31. Qxe6 {[%emt 0:01:32]} Ra1+ {[%emt 0:00:07]} 32. Kc2 {[%emt 0:00:11]} fxe6 {[%emt 0:00:18]} 33. Rxa1 {[%emt 0:02:24]} Rxa1 {[%emt 0:00:08]} 34. Rd3 {[%emt 0:00:20]} Ra6 {[%emt 0:00:17]} 35. Rd4 {[%emt 0:00:31]} Rb6 {[%emt 0:00:14]} 36. Kd3 {[%emt 0:01:41]} Kf7 {[%emt 0:00:31]} 37. Rc4 {[%emt 0:01:09]} Rb7 {[%emt 0:01:46]} 38. Kd4 {[%emt 0:01:01]} Ke7 {[%emt 0:01:14]} 39. g5 {[%emt 0:02:18]} Kd7 {[%emt 0:00:36]} 40. Rc1 {[%emt 0:06:57]} Ra7 {[%emt 0:01:00]} 41. Rc4 {[%emt 0:04:17]} Rb7 {[%emt 0:00:11]} 42. Rc2 {[%emt 0:00:05]} Rb5 {[%emt 0:01:01]} 43. Rf2 {[%emt 0:03:46]} g6 {[%emt 0:01:27]} 44. hxg6 {[%emt 0:05:13]} hxg6 {[%emt 0:00:02]} 45. Rh2 {[%emt 0:00:10]} e5+ {[%emt 0:02:56]} 46. Ke3 {[%emt 0:03:13]} exf4+ {[%emt 0:01:04]} 47. Kxf4 {[%emt 0:00:08]} Re5 {[%emt 0:00:14]} 48. Rh7+ {[%emt 0:08:28]} Kc6 {[%emt 0:00:23]} 49. Rf7 {[%emt 0:05:21]} Re6 {[%emt 0:00:51]} 1/2-1/2